fUST/lending_fUST_20260220
["ID","MTS","AMOUNT","RATE_DAILY","PERIOD"]
[406014433,1771554639219,-500.41519048,0.00013273,2]
[406014434,1771554639230,-500.15366837,0.00013273,2]
[406014435,1771554639240,-389.64709659,0.00013273,2]
[406014437,1771554639249,-500.0,0.00013273,2]
[406014439,1771554639260,-471.94596658,0.00013273,2]
[406014441,1771554639270,-501.36524248,0.00013273,2]
[406014443,1771554639280,-500.0,0.00013273,2]
[406014445,1771554639289,-500.0,0.00013273,2]
[406014447,1771554639299,-507.37515151,0.00013273,2]
[406014450,1771554639310,-500.0,0.00013273,2]
[406014452,1771554639319,-500.0,0.00013273,2]
[406014454,1771554639329,-500.0,0.00013273,2]
[406014456,1771554639339,-500.0,0.00013273,2]
[406014458,1771554639349,-526.82171063,0.00013273,2]
[406014460,1771554639358,-505.14953947,0.00013273,2]
[406014462,1771554639368,-500.0,0.00013273,2]
[406014464,1771554639378,-327.74353894,0.00013273,2]
[406014466,1771554639388,-178.272948,0.00013273,2]
[406014467,1771554639397,-170.156033,0.00013273,2]
[406014469,1771554639406,-151.0,0.00013273,2]
[406014471,1771554639416,-151.0,0.00013273,2]
[406014473,1771554639425,-306.0,0.00013275,2]
[406014474,1771554639434,-306.0,0.00013314,2]
[406014475,1771554639444,-306.0,0.00013347,2]
[406014476,1771554639454,-306.0,0.0001337,2]
[406014477,1771554639464,-306.0,0.00013424,2]
[406014479,1771554639474,-306.0,0.00013426,2]
[406014481,1771554639483,-306.0,0.00013499,2]
[406014483,1771554639493,-306.0,0.00013519,2]
[406014484,1771554639502,-306.0,0.00013545,2]
[406014485,1771554639512,-11388.5776927,0.0001358,2]
[406014487,1771554639522,-306.0,0.00013645,2]
[406014488,1771554639532,-150.14156379,0.00013673,2]
[406014489,1771554639542,-300.0,0.00013673,2]
[406014490,1771554639552,-3162.36669477,0.00013698,2]
[406014491,1771554639562,-500.0,0.00013698,2]
[406014492,1771554639572,-500.0,0.00013698,2]
[406014493,1771554639582,-500.0,0.00013698,2]
[406014494,1771554639591,-500.0,0.00013698,2]
[406014495,1771554639601,-500.0,0.00013698,2]
[406014496,1771554639611,-515.75657619,0.00013698,2]
[406014497,1771554639621,-500.0,0.00013698,2]
[406014498,1771554639631,-500.0,0.00013698,2]
[406014499,1771554639641,-500.0,0.00013698,2]
[406014500,1771554639651,-419.33792284,0.00013698,2]
[406014501,1771554639661,-12459.53041932,0.00013699,2]
[406014502,1771554639671,-1065.674444,0.00013699,2]
[406014503,1771554639680,-154.415367,0.00013699,2]
[406014504,1771554639690,-548.0059768,0.00013699,2]
[406014505,1771554639699,-500.0,0.00013699,2]
[406014506,1771554639708,-501.06206749,0.00013699,2]
[406014507,1771554639718,-500.30095567,0.00013699,2]
[406014508,1771554639728,-569.26530316,0.00013699,2]
[406014509,1771554639740,-160.80425652,0.00013699,2]
[406014510,1771554639750,-500.0,0.00013699,2]
[406014511,1771554639759,-500.42918622,0.00013699,2]
[406014512,1771554639771,-500.0,0.00013699,2]
[406014513,1771554639780,-161.22171,0.00013699,2]
[406014514,1771554639790,-504.1012816,0.00013699,2]
[406014515,1771554639799,-627.72921047,0.00013699,2]
[406014516,1771554639810,-500.0,0.00013699,2]
[406014517,1771554639820,-300.45413135,0.00013699,2]
[406014518,1771554639829,-500.0,0.00013699,2]
[406014519,1771554639839,-500.14090131,0.00013699,2]
[406014520,1771554639848,-592.13064308,0.00013699,2]
[406014521,1771554639859,-500.0,0.00013699,2]
[406014522,1771554639868,-500.0,0.00013699,2]
[406014523,1771554639878,-500.0,0.00013699,2]
[406014524,1771554639887,-500.0,0.00013699,2]
[406014525,1771554639897,-500.0,0.00013699,2]
[406014526,1771554639907,-500.0,0.00013699,2]
[406014527,1771554639917,-194.14287714,0.00013699,2]
[406014528,1771554639926,-500.0,0.00013699,2]
[406014529,1771554639935,-500.26726664,0.00013699,2]
[406014530,1771554639944,-500.0,0.00013699,2]
[406014531,1771554639953,-500.0,0.00013699,2]
[406014532,1771554639963,-500.0,0.00013699,2]
[406014533,1771554639972,-459.96143261,0.00013699,2]
[406014534,1771554639981,-601.74045404,0.00013699,2]
[406014535,1771554639991,-151.0,0.00013699,2]
[406014536,1771554640000,-504.65766852,0.00013699,2]
[406014537,1771554640009,-502.44466225,0.00013699,2]
[406014538,1771554640019,-500.84525659,0.00013699,2]
[406014539,1771554640028,-500.0,0.00013699,2]
[406014540,1771554640042,-500.0,0.00013699,2]
[406014542,1771554640051,-500.0,0.00013699,2]
[406014543,1771554640061,-500.0,0.00013699,2]
[406014545,1771554640071,-500.0,0.00013699,2]
[406014546,1771554640083,-498.82431241,0.00013699,2]
[406014547,1771554640092,-500.0,0.00013699,2]
[406014548,1771554640103,-500.0,0.00013699,2]
[406014549,1771554640114,-500.0,0.00013699,2]
[406014551,1771554640124,-500.0,0.00013699,2]
[406014552,1771554640134,-500.0,0.00013699,2]
[406014553,1771554640146,-545.57401047,0.00013699,2]
[406014554,1771554640156,-500.0,0.00013699,2]
[406014555,1771554640166,-500.0,0.00013699,2]
[406014556,1771554640175,-500.0,0.00013699,2]
[406014557,1771554640185,-500.0,0.00013699,2]
[406014558,1771554640195,-500.0,0.00013699,2]
[406014559,1771554640204,-500.0,0.00013699,2]
[406014560,1771554640214,-500.0,0.00013699,2]
[406014561,1771554640224,-500.0,0.00013699,2]
[406014562,1771554640233,-500.67471724,0.00013699,2]
[406014563,1771554640243,-500.0,0.00013699,2]
[406014564,1771554640252,-373.72460777,0.00013699,2]
[406014565,1771554640262,-500.0,0.00013699,2]
[406014566,1771554640271,-500.0,0.00013699,2]
[406014567,1771554640281,-500.32796546,0.00013699,2]
[406014569,1771554640290,-500.0,0.00013699,2]
[406014570,1771554640300,-500.14453389,0.00013699,2]
[406014571,1771554640310,-500.0,0.00013699,2]
[406014572,1771554640319,-538.33070346,0.00013699,2]
[406014573,1771554640328,-306.0,0.00013711,2]
[406014574,1771554640337,-306.0,0.00013818,2]
[406014575,1771554640347,-500.0,0.0001382,2]
[406014576,1771554640357,-500.0,0.0001382,2]
[406014577,1771554640367,-451.16635349,0.0001382,2]
[406014578,1771554640377,-664.70158485,0.00013821,2]
[406014579,1771554640387,-899.9098568,0.00013821,2]
[406014580,1771554640398,-1000.0,0.00013821,2]
[406014581,1771554640408,-1008.03343224,0.00013821,2]
[406014582,1771554640418,-1000.0,0.00013821,2]
[406014583,1771554640429,-1000.0,0.00013821,2]
[406014584,1771554640439,-1000.0,0.00013821,2]
[406014585,1771554640448,-1000.0,0.00013821,2]
[406014586,1771554640458,-1000.0,0.00013821,2]
[406014587,1771554640467,-1000.0,0.00013821,2]
[406014588,1771554640476,-1000.0,0.00013821,2]
[406014589,1771554640486,-1000.0,0.00013821,2]
[406014590,1771554640495,-1000.0,0.00013821,2]
[406014591,1771554640504,-1000.0,0.00013821,2]
[406014592,1771554640513,-1000.0,0.00013821,2]
[406014593,1771554640524,-1000.0,0.00013821,2]
[406014594,1771554640533,-1000.0,0.00013821,2]
[406014595,1771554640542,-1000.0,0.00013821,2]
[406014596,1771554640552,-281.3270787,0.00013821,2]
[406014597,1771554640561,-1000.0,0.00013821,2]
[406014598,1771554640570,-1000.0,0.00013821,2]
[406014599,1771554640579,-501.27713999,0.00013821,2]
[406014600,1771554640588,-1000.0,0.00013821,2]
[406014601,1771554640597,-1000.0,0.00013821,2]
[406014602,1771554640607,-1000.0,0.00013821,2]
[406014603,1771554640616,-1000.0,0.00013821,2]
[406014604,1771554640625,-1000.0,0.00013821,2]
[406014605,1771554640634,-665.12497577,0.00013821,2]
[406014606,1771554640643,-1000.0,0.00013821,2]
[406014607,1771554640652,-1000.0,0.00013821,2]
[406014608,1771554640662,-1000.0,0.00013821,2]
[406014609,1771554640671,-154.12049677,0.00013821,2]
[406014610,1771554640680,-1000.0,0.00013821,2]
[406014611,1771554640691,-1000.0,0.00013821,2]
[406014612,1771554640702,-1000.0,0.00013821,2]
[406014613,1771554640716,-210.41118423,0.00013821,2]
[406014614,1771554640727,-1000.0,0.00013821,2]
[406014615,1771554640740,-507.17401108,0.00013898,2]
[406014616,1771554640749,-500.0,0.00013971,2]
[406014617,1771554640759,-150.0,0.00013973,2]
[406014618,1771554640769,-306.0,0.00014024,2]
[406014619,1771554640780,-306.0,0.00014034,2]
[406014620,1771554640790,-1000.0,0.00014075,2]
[406014621,1771554640801,-492.0,0.00014075,2]
[406014622,1771554640813,-306.0,0.00014097,2]
[406014623,1771554640823,-231.0,0.00014112,2]
[406014624,1771554640834,-306.0,0.00014192,2]
[406014625,1771554640846,-306.0,0.00014201,2]
[406014626,1771554640857,-600.0,0.00014221,2]
[406014627,1771554640866,-500.0,0.00014246,2]
[406014628,1771554640876,-150.4877308,0.00014247,2]
[406014629,1771554640992,-1000.0,0.00014247,2]
[406014630,1771554641001,-1000.0,0.00014247,2]
[406014631,1771554641011,-198.74165185,0.00014247,2]
[406014632,1771554641020,-506.95906028,0.00014247,2]
[406014633,1771554641029,-1000.0,0.00014247,2]
[406014634,1771554641038,-776.05943728,0.00014247,2]
[406014635,1771554641047,-1000.0,0.00014247,2]
[406014636,1771554641056,-1000.0,0.00014247,2]
[406014637,1771554641065,-500.1646221,0.00014247,2]
[406014638,1771554641074,-1000.0,0.00014247,2]
[406014639,1771554641083,-502.98647182,0.00014247,2]
[406014640,1771554641093,-1000.0,0.00014247,2]
[406014641,1771554641102,-1000.0,0.00014247,2]
[406014642,1771554641111,-504.53940885,0.00014247,2]
[406014643,1771554641121,-1120.79608807,0.00014247,2]
[406014644,1771554641131,-538.79699641,0.00014247,2]
[406014645,1771554641142,-1000.0,0.00014247,2]
[406014646,1771554641152,-1001.58469858,0.00014247,2]
[406014647,1771554641161,-1000.19061509,0.00014247,2]
[406014648,1771554641172,-1006.52654493,0.00014247,2]
[406014649,1771554641182,-1000.0,0.00014247,2]
[406014650,1771554641191,-1000.0,0.00014247,2]
[406014651,1771554641201,-1000.0,0.00014247,2]
[406014652,1771554641210,-1001.595502,0.00014247,2]
[406014653,1771554641219,-691.9931975,0.00014247,2]
[406014654,1771554641228,-501.49064677,0.00014247,2]
[406014655,1771554641240,-1000.0,0.00014247,2]
[406014656,1771554641250,-1002.86329604,0.00014247,2]
[406014657,1771554641259,-359.3940682,0.00014247,2]
[406014658,1771554641268,-307.00152442,0.00014247,2]
[406014659,1771554641276,-1000.0,0.00014247,2]
[406014660,1771554641285,-1000.0,0.00014247,2]
[406014661,1771554641295,-501.51149883,0.00014247,2]
[406014662,1771554641306,-1000.0,0.00014247,2]
[406014663,1771554641316,-1000.0,0.00014247,2]
[406014664,1771554641326,-1000.0,0.00014247,2]
[406014665,1771554641335,-1000.50113705,0.00014247,2]
[406014666,1771554641344,-306.0,0.00014262,2]
[406014667,1771554641356,-306.0,0.00014365,2]
[406014668,1771554641365,-500.0,0.00014368,2]
[406014669,1771554641374,-500.0,0.00014368,2]
[406014670,1771554641382,-500.55790131,0.00014368,2]
[406014671,1771554641392,-500.58898421,0.00014368,2]
[406014672,1771554641400,-976.10765924,0.00014368,2]
[406014673,1771554641409,-1505.63951875,0.00014368,2]
[406014674,1771554641419,-1572.92050095,0.00014368,2]
[406014675,1771554641428,-1000.77568333,0.00014368,2]
[406014676,1771554641437,-1500.0,0.00014368,2]
[406014677,1771554641446,-1500.0,0.00014368,2]
[406014678,1771554641456,-1500.0,0.00014368,2]
[406014679,1771554641465,-1500.0,0.00014368,2]
[406014680,1771554641473,-1500.0,0.00014368,2]
[406014681,1771554641482,-1500.0,0.00014368,2]
[406014682,1771554641491,-455.38789506,0.00014368,2]
[406014683,1771554641501,-1020.5606965,0.00014368,2]
[406014684,1771554641511,-413.80928703,0.00014368,2]
[406014685,1771554641521,-1500.0,0.00014368,2]
[406014686,1771554641530,-508.10691098,0.00014368,2]
[406014687,1771554641540,-1500.0,0.00014368,2]
[406014688,1771554641550,-1500.0,0.00014368,2]
[406014689,1771554641561,-1503.13900474,0.00014368,2]
[406014690,1771554641570,-1500.0,0.00014368,2]
[406014691,1771554641580,-1500.0,0.00014368,2]
[406014692,1771554641589,-1500.0,0.00014368,2]
[406014693,1771554641599,-1500.0,0.00014368,2]
[406014694,1771554641607,-620.79512277,0.00014368,2]
[406014695,1771554641617,-501.35415488,0.00014368,2]
[406014696,1771554641626,-1500.0,0.00014368,2]
[406014697,1771554641635,-878.96545149,0.00014368,2]
[406014698,1771554641644,-1500.0,0.00014368,2]
[406014699,1771554641653,-306.0,0.00014463,2]
[406014700,1771554641662,-154.0,0.00014521,2]
[406014701,1771554641671,-306.0,0.00014567,2]
[406014702,1771554641681,-306.0,0.00014573,2]
[406014703,1771554641692,-900.0,0.00014768,2]
[406014704,1771554641702,-500.0,0.00014794,2]
[406014705,1771554641712,-1079.74202891,0.00014795,2]
[406014706,1771554641721,-1500.0,0.00014795,2]
[406014707,1771554641736,-417.78459312,0.00014795,2]
[406014708,1771554641745,-270.88773987,0.00014795,2]
[406014709,1771554641755,-1500.0,0.00014795,2]
[406014710,1771554641764,-1198.6347522,0.00014795,2]
[406014711,1771554641775,-1500.0,0.00014795,2]
[406014712,1771554641784,-510.56746024,0.00014795,2]
[406014713,1771554641793,-553.71694398,0.00014795,2]
[406014714,1771554641803,-1397.94710904,0.00014795,2]
[406014715,1771554641814,-1076.33970585,0.00014795,2]
[406014716,1771554641823,-1500.0,0.00014795,2]
[406014717,1771554641833,-535.15423498,0.00014795,2]
[406014718,1771554641841,-510.06466668,0.00014795,2]
[406014719,1771554641850,-986.85046492,0.00014795,2]
[406014720,1771554641860,-1500.0,0.00014795,2]
[406014721,1771554641869,-1500.0,0.00014795,2]
[406014722,1771554641880,-610.793694,0.00014795,2]
[406014723,1771554641891,-597.83034225,0.000149,2]
[406014724,1771554641900,-411.47372607,0.00014916,2]
[406014725,1771554641908,-1535.93834376,0.00014916,2]
[406014726,1771554641917,-2009.14533087,0.00014916,2]
[406014727,1771554641926,-503.49206962,0.00014916,2]
[406014728,1771554641935,-814.79661659,0.00014916,2]
[406014729,1771554641944,-1013.3921837,0.00014916,2]
[406014730,1771554641952,-1003.13104267,0.00014916,2]
[406014731,1771554641961,-2000.0,0.00014916,2]
[406014732,1771554641972,-751.71286677,0.00014916,2]
[406014733,1771554641982,-2000.0,0.00014916,2]
[406014734,1771554641992,-2000.0,0.00014916,2]
[406014735,1771554642002,-885.69831977,0.00014916,2]
[406014736,1771554642012,-2000.0,0.00014916,2]
[406014737,1771554642022,-2000.0,0.00014916,2]
[406014738,1771554642032,-2000.0,0.00014916,2]
[406014739,1771554642042,-2000.0,0.00014916,2]
[406014740,1771554642052,-944.08038777,0.00015,2]
[406014741,1771554642061,-386.15981031,0.00015,2]
[406014742,1771554642070,-158.0810018,0.00015068,2]
[406014743,1771554642079,-180.3933326,0.00015068,2]
[406014744,1771554642089,-2541.1351644,0.000153,2]
[406014745,1771554642098,-625.94490188,0.00015316,2]
[406014746,1771554642108,-956.01298841,0.00015342,2]
[406014747,1771554642118,-190.83365902,0.00015342,2]
[406014748,1771554642127,-775.09795119,0.00015342,2]
[406014749,1771554642137,-2000.0,0.00015342,2]
[406014750,1771554642146,-2000.0,0.00015342,2]
[406014751,1771554642155,-235.84619282,0.00015342,2]
[406014752,1771554642164,-380.902297,0.00015464,2]
[406014753,1771554642173,-2500.0,0.00015464,2]
[406014754,1771554642182,-2500.0,0.00015464,2]
[406014755,1771554642192,-615.43492939,0.00015464,2]
[406014756,1771554642201,-2500.0,0.00015464,2]
[406014757,1771554642210,-2500.0,0.00015464,2]
[406014758,1771554642220,-2500.0,0.00015464,2]
[406014759,1771554642230,-1000.0,0.00015482,2]
[406014760,1771554642240,-791.0,0.00015482,2]
[406014761,1771554642249,-20000.0,0.000155,2]
[406014762,1771554642259,-5000.0,0.0001564,2]
[406014763,1771554642268,-567.0038962,0.00015684,2]
[406014764,1771554642278,-2500.0,0.0001589,2]
[406014765,1771554642287,-2500.0,0.0001589,2]
[406014766,1771554642296,-3000.0,0.00016012,2]
[406014767,1771554642306,-3000.0,0.00016012,2]
[406014768,1771554642315,-3000.0,0.00016012,2]
[406014769,1771554642324,-3000.0,0.00016012,2]
[406014770,1771554642334,-3000.0,0.00016012,2]
[406014771,1771554642343,-258.0,0.00016112,2]
[406014772,1771554642352,-156.0,0.00016438,2]
[406014773,1771554642361,-156.0,0.00016438,2]
[406014774,1771554642370,-150.0,0.00016438,2]
[406014775,1771554642379,-152.734748,0.00016438,2]
[406014776,1771554642388,-296.95441465,0.00016438,2]
[406014777,1771554642398,-165.15996392,0.00016438,2]
[406014778,1771554642407,-3000.0,0.00016438,2]
[406014779,1771554642416,-3000.0,0.00016438,2]
[406014780,1771554642425,-100000.0,0.00016488,2]
[406014781,1771554642433,-3500.0,0.0001656,2]
[406014782,1771554642443,-637.30736868,0.0001656,2]
[406014783,1771554642452,-318.50814793,0.0001656,2]
[406014784,1771554642461,-2463.46954618,0.0001656,2]
[406014785,1771554642471,-2278.40282695,0.0001656,2]
[406014786,1771554642480,-166.0,0.000169,2]
[406014787,1771554642490,-169.31469384,0.000169,2]
[406014788,1771554642500,-201.12875012,0.00016986,2]
[406014789,1771554642509,-2255.94837601,0.00016986,2]
[406014790,1771554642519,-3500.0,0.00016986,2]
[406014791,1771554642528,-3500.0,0.00016986,2]
[406014792,1771554642538,-1000.0,0.00017031,2]
[406014793,1771554642548,-1000.0,0.00017031,2]
[406014794,1771554642559,-3488.65898019,0.00017108,2]
[406014795,1771554642569,-337.0,0.00017389,2]
[406014796,1771554642578,-487.0,0.00017389,2]
[406014797,1771554642587,-487.0,0.00017389,2]
[406014798,1771554642596,-487.0,0.00017389,2]
[406014799,1771554642606,-487.0,0.00017389,2]
[406014800,1771554642615,-487.0,0.00017389,2]
[406014801,1771554642624,-487.0,0.00017389,2]
[406014802,1771554642633,-487.0,0.00017389,2]
[406014803,1771554642642,-487.0,0.00017389,2]
[406014804,1771554642651,-487.0,0.00017389,2]
[406014805,1771554642660,-487.0,0.00017389,2]
[406014806,1771554642669,-487.0,0.00017389,2]
[406014807,1771554642678,-487.0,0.00017389,2]
[406014808,1771554642686,-487.0,0.00017389,2]
[406014809,1771554642695,-487.0,0.00017389,2]
[406014810,1771554642704,-487.0,0.00017389,2]
[406014811,1771554642713,-487.0,0.00017389,2]
[406014812,1771554642722,-487.0,0.00017389,2]
[406014813,1771554642733,-487.0,0.00017389,2]
[406014814,1771554642742,-487.0,0.00017389,2]
[406014815,1771554642752,-487.0,0.00017389,2]
[406014817,1771554642761,-524.0,0.00017389,2]
[406014819,1771554642770,-156.0,0.00017513,2]
[406014821,1771554642781,-3750.94622918,0.00017534,2]
[406014823,1771554642790,-1794.42146818,0.00017534,2]
[406014825,1771554642799,-435.0,0.0001757,2]
[406014827,1771554642809,-150.91801739,0.00017808,2]
[406014829,1771554642819,-375.0,0.00017809,2]
[406014830,1771554642827,-22665.0,0.00018,2]
[406014831,1771554642836,-34470.14657289,0.00018,2]
[406014832,1771554642845,-200.16,0.00018,2]
[406014833,1771554642854,-376.00806267,0.00018009,7]
[406014834,1771554642863,-285.0,0.00018112,2]
[406014835,1771554642872,-10000.0,0.00018496,2]
[406014836,1771554642881,-1000.0,0.00018734,2]
[406014837,1771554642891,-1000.0,0.00018734,2]
[406014839,1771554642899,-579.0,0.00018734,2]
[406014841,1771554642908,-5000.0,0.00018768,2]
[406014843,1771554642918,-376.00806267,0.00019032,8]
[406014844,1771554642927,-512.96,0.00019178,2]
[406014845,1771554642936,-281.2391,0.00019178,2]
[406014846,1771554642945,-281.2391,0.00019178,2]
[406014847,1771554642954,-281.2391,0.00019178,2]
[406014848,1771554642963,-281.2391,0.00019178,2]
[406014849,1771554642972,-281.2391,0.00019178,2]
[406014850,1771554642981,-281.2391,0.00019178,2]
[406014851,1771554642992,-281.2391,0.00019178,2]
[406014852,1771554643001,-281.2391,0.00019178,2]
[406014853,1771554643011,-281.2391,0.00019178,2]
[406014854,1771554643020,-281.2391,0.00019178,2]
[406014855,1771554643118,-281.2391,0.00019178,2]
[406014856,1771554643129,-281.2391,0.00019178,2]
[406014857,1771554643139,-281.2391,0.00019178,2]
[406014858,1771554643149,-281.2391,0.00019178,2]
[406014859,1771554643158,-281.2391,0.00019178,2]
[406014860,1771554643167,-536.495506,0.00019178,2]
[406014861,1771554643177,-536.495506,0.00019178,2]
[406014862,1771554643186,-536.495506,0.00019178,2]
[406014863,1771554643195,-536.495506,0.00019178,2]
[406014864,1771554643204,-536.495506,0.00019178,2]
[406014865,1771554643214,-536.495506,0.00019178,2]
[406014866,1771554643223,-536.495506,0.00019178,2]
[406014867,1771554643232,-536.495506,0.00019178,2]
[406014868,1771554643242,-536.495506,0.00019178,2]
[406014869,1771554643251,-536.495506,0.00019178,2]
[406014871,1771554643260,-536.495506,0.00019178,2]
[406014872,1771554643269,-536.495506,0.00019178,2]
[406014874,1771554643278,-536.495506,0.00019178,2]
[406014875,1771554643289,-536.495506,0.00019178,2]
[406014876,1771554643298,-536.495506,0.00019178,2]
[406014877,1771554643309,-536.495506,0.00019178,2]
[406014878,1771554643318,-536.495506,0.00019178,2]
[406014879,1771554643327,-536.495506,0.00019178,2]
[406014880,1771554643336,-536.495506,0.00019178,2]
[406014881,1771554643346,-536.495515,0.00019178,2]
[406014882,1771554643356,-2254.49,0.000192,2]
[406014883,1771554643366,-161.09,0.000192,2]
[406014884,1771554643375,-673.16,0.000192,2]
[406014885,1771554643384,-2000.0,0.00019579,7]
[406014886,1771554643394,-166.0,0.000198,3]
[406014887,1771554643403,-300300.0,0.0002,2]
[406014888,1771554643412,-150.5,0.0002,2]
[406014889,1771554643421,-250.0,0.0002,10]
[406014890,1771554643430,-376.00806267,0.00020055,10]
[406014891,1771554643439,-375.43686,0.000201,10]
[406014892,1771554643448,-312.0,0.00020112,2]
[406014893,1771554643458,-976.0,0.00020119,10]
[406014894,1771554643467,-151.0,0.000203,3]
[406014895,1771554643476,-5000.0,0.00020332,2]
[406014896,1771554643485,-1065.674444,0.00020548,2]
[406014897,1771554643495,-1000.0,0.00020607,2]
[406014898,1771554643503,-1000.0,0.00020607,2]
[406014899,1771554643512,-1000.0,0.00020607,2]
[406014900,1771554643521,-155.974,0.00021013,2]
[406014901,1771554643531,-376.00806267,0.00021078,11]
[406014902,1771554643540,-151.0,0.000214,4]
[406014903,1771554643549,-151.0,0.00021918,2]
[406014904,1771554643558,-151.0,0.00021918,2]
[406014905,1771554643567,-151.0,0.00021918,2]
[406014906,1771554643576,-151.0,0.00021918,2]
[406014907,1771554643585,-151.0,0.00021918,2]
[406014908,1771554643594,-266.797844,0.00021918,2]
[406014909,1771554643603,-570.60924395,0.00022,14]
[406014910,1771554643612,-395.3,0.00022,7]
[406014912,1771554643621,-57441.47,0.00022,2]
[406014914,1771554643630,-10000.0,0.00022059,7]
[406014916,1771554643639,-1873.0,0.00022059,7]
[406014918,1771554643648,-376.00806267,0.00022101,12]
[406014920,1771554643656,-339.0,0.00022112,2]
[406014922,1771554643665,-151.0,0.00022126,6]
[406014924,1771554643676,-19877.23737869,0.00022312,2]
[406014925,1771554643685,-59914.45605978,0.00022312,2]
[406014928,1771554643695,-673.16,0.000224,14]
[406014929,1771554643704,-743.73449086,0.00022401,2]
[406014930,1771554643712,-160.0,0.00022401,2]
[406014931,1771554643721,-151.0,0.000225,6]
[406014932,1771554643731,-1000.0,0.00022668,10]
[406014933,1771554643744,-1000.0,0.00022668,10]
[406014934,1771554643753,-591.0,0.00022668,10]
[406014935,1771554643762,-500.0,0.00022738,2]
[406014936,1771554643770,-162.0,0.00023,7]
[406014937,1771554643782,-376.00806267,0.00023124,14]
[406014938,1771554643791,-151.0,0.000236,9]
[406014939,1771554643800,-12635.07837893,0.0002365,3]
[406014940,1771554643811,-743.60641596,0.0002365,3]
[406014941,1771554643820,-151.0,0.000238,10]
[406014942,1771554643829,-2254.49,0.00024,2]
[406014943,1771554643838,-743.60641596,0.00024,7]
[406014944,1771554643849,-503.58763659,0.00024,2]
[406014945,1771554643859,-366.0,0.00024112,2]
[406014946,1771554643868,-376.00806267,0.00024147,15]
[406014947,1771554643878,-162.0,0.00024164,7]
[406014948,1771554643887,-57441.47,0.000242,2]
[406014949,1771554643895,-2654.58605902,0.00024404,2]
[406014950,1771554643905,-155.975,0.00024513,2]
[406014951,1771554643915,-445.37030241,0.00024651,2]
[406014952,1771554643926,-28782.09290589,0.00024651,2]
[406014953,1771554643935,-395.3,0.000247,7]
[406014954,1771554643944,-606.88972216,0.000248,2]
[406014955,1771554643955,-673.16,0.000248,14]
[406014956,1771554643964,-2151.4237772,0.000248,2]
[406014957,1771554643973,-853.45507422,0.00025,30]
[406014958,1771554643982,-200.0,0.00025,17]
[406014959,1771554643992,-692.32269595,0.00025,2]
[406014960,1771554644002,-50000.0,0.00025,30]
[406014961,1771554644011,-185.0,0.00025,7]
[406014962,1771554644028,-378929.64329419,0.00025,5]
[406014963,1771554644060,-310.40026493,0.00025,5]
[406014967,1771554645980,-380.88,7.1e-05,2]
[406014968,1771554645991,-380.88,7.1e-05,2]
[406014969,1771554646001,-380.88,7.1e-05,2]
[406014970,1771554646011,-380.88,7.2e-05,2]
[406014971,1771554646021,-500.55457887,0.00013699,2]
[406014972,1771554646032,-1063.86,0.00022302,10]
[406014973,1771554646042,-17708.87196166,0.00025,5]
[406014974,1771554719218,-1382.0,0.0001103,2]
[406014975,1771554719252,-41.974124,0.00012117,2]
[406014976,1771554748516,-1382.0,0.00012117,2]
[406014979,1771555081070,239.46,1.998e-05,2]
[406014980,1771555081401,239.46,1.998e-05,2]
[406014981,1771555081773,239.46,1.998e-05,2]
[406015006,1771555783050,3334.44,0.00014,30]
[406015041,1771555832116,-1192.18933296,0.0001092,2]
[406015046,1771555832169,-3807.81066704,0.0001092,2]
[406015048,1771555832178,-573.0,0.0001092,2]